fUST/lending_fUST_20251012
["ID","MTS","AMOUNT","RATE_DAILY","PERIOD"]
[390972744,1760248239069,-151.0,0.000249,7]
[390972745,1760248239078,-151.0,0.000249,7]
[390972746,1760248239088,-151.0,0.000249,7]
[390972747,1760248239097,-151.0,0.000249,7]
[390972748,1760248239106,-778.753641,0.000249,7]
[390972749,1760248239115,-778.753641,0.000249,7]
[390972750,1760248239124,-778.753641,0.000249,7]
[390972751,1760248239134,-778.753641,0.000249,7]
[390972752,1760248239143,-778.753641,0.000249,7]
[390972753,1760248239153,-778.753641,0.000249,7]
[390972754,1760248239163,-778.753641,0.000249,7]
[390972755,1760248239172,-778.753641,0.000249,7]
[390972756,1760248239186,-151.0,0.000249,7]
[390972757,1760248239195,-151.0,0.000249,7]
[390972758,1760248239205,-190.91153,0.000249,7]
[390972759,1760248239214,-190.91153,0.000249,7]
[390972760,1760248239225,-190.91153,0.000249,7]
[390972761,1760248239235,-190.91153,0.000249,7]
[390972762,1760248239244,-190.91153,0.000249,7]
[390972763,1760248239255,-190.91153,0.000249,7]
[390972764,1760248239265,-190.91153,0.000249,7]
[390972765,1760248239275,-190.91153,0.000249,7]
[390972766,1760248239284,-165.0,0.000249,3]
[390972767,1760248239293,-165.0,0.000249,3]
[390972768,1760248239303,-166.0,0.000249,3]
[390972769,1760248239312,-166.0,0.000249,3]
[390972770,1760248239321,-151.0,0.000249,7]
[390972771,1760248239330,-151.0,0.000249,7]
[390972772,1760248239340,-151.0,0.000249,7]
[390972773,1760248239349,-151.0,0.000249,7]
[390972774,1760248239359,-203.611045,0.000249,7]
[390972775,1760248239369,-263.415969,0.000249,7]
[390972776,1760248239378,-263.415969,0.000249,7]
[390972777,1760248239387,-263.415969,0.000249,7]
[390972778,1760248239397,-168.042562,0.000249,7]
[390972779,1760248239406,-263.415969,0.000249,7]
[390972780,1760248239415,-263.415969,0.000249,7]
[390972781,1760248239424,-263.415969,0.000249,7]
[390972782,1760248239434,-168.042562,0.000249,7]
[390972783,1760248239443,-151.0,0.000249,7]
[390972784,1760248239453,-263.415969,0.000249,7]
[390972785,1760248239463,-168.042562,0.000249,7]
[390972786,1760248239473,-263.415969,0.000249,7]
[390972787,1760248239482,-251.72888,0.000249,7]
[390972788,1760248239492,-168.042562,0.000249,7]
[390972789,1760248239501,-151.0,0.000249,7]
[390972790,1760248239512,-151.0,0.000249,7]
[390972791,1760248239521,-151.0,0.000249,7]
[390972792,1760248239531,-153.89151,0.000249,7]
[390972793,1760248239540,-151.0,0.000249,7]
[390972795,1760248239549,-151.0,0.000249,7]
[390972797,1760248239559,-202.6244,0.000249,7]
[390972799,1760248239568,-202.6244,0.000249,7]
[390972801,1760248239577,-202.6244,0.000249,7]
[390972803,1760248239586,-202.6244,0.000249,7]
[390972804,1760248239595,-151.0,0.000249,7]
[390972806,1760248239604,-166.0,0.000249,3]
[390972808,1760248239613,-166.0,0.000249,3]
[390972810,1760248239622,-166.0,0.000249,3]
[390972812,1760248239631,-166.0,0.000249,3]
[390972814,1760248239640,-151.0,0.000249,7]
[390972816,1760248239650,-151.0,0.000249,7]
[390972818,1760248239659,-151.0,0.000249,7]
[390972820,1760248239668,-296.497158,0.000249,7]
[390972822,1760248239677,-296.497158,0.000249,7]
[390972824,1760248239686,-151.0,0.000249,7]
[390972826,1760248239694,-296.497158,0.000249,7]
[390972828,1760248239703,-151.0,0.000249,7]
[390972830,1760248239713,-296.497158,0.000249,7]
[390972832,1760248239721,-151.0,0.000249,7]
[390972833,1760248239730,-151.0,0.000249,7]
[390972834,1760248239740,-286.609541,0.000249,7]
[390972835,1760248239749,-153.865829,0.000249,7]
[390972836,1760248239759,-151.0,0.000249,7]
[390972837,1760248239769,-151.0,0.000249,7]
[390972838,1760248239778,-151.0,0.000249,7]
[390972839,1760248239787,-151.0,0.000249,7]
[390972840,1760248239796,-151.0,0.000249,7]
[390972841,1760248239806,-163.885816,0.000249,7]
[390972842,1760248239815,-151.0,0.000249,7]
[390972843,1760248239825,-151.0,0.000249,7]
[390972844,1760248239835,-151.0,0.000249,7]
[390972845,1760248239844,-879.262409,0.000249,7]
[390972846,1760248239853,-151.0,0.000249,7]
[390972847,1760248239863,-151.0,0.000249,7]
[390972848,1760248239872,-879.262409,0.000249,7]
[390972849,1760248239881,-879.262409,0.000249,7]
[390972850,1760248239890,-151.0,0.000249,7]
[390972851,1760248239900,-879.262409,0.000249,7]
[390972852,1760248239909,-165.069161,0.000249,7]
[390972853,1760248239918,-165.069161,0.000249,7]
[390972855,1760248239927,-165.069161,0.000249,7]
[390972856,1760248239936,-165.069161,0.000249,7]
[390972857,1760248239945,-151.0,0.000249,7]
[390972858,1760248239954,-151.0,0.000249,7]
[390972859,1760248239963,-151.0,0.000249,7]
[390972861,1760248240081,-151.0,0.000249,7]
[390972863,1760248240090,-151.0,0.000249,7]
[390972865,1760248240099,-151.0,0.000249,7]
[390972867,1760248240108,-153.005721,0.000249,7]
[390972868,1760248240117,-196.172456,0.000249,7]
[390972870,1760248240126,-196.172456,0.000249,7]
[390972873,1760248240135,-196.172456,0.000249,7]
[390972874,1760248240144,-196.172456,0.000249,7]
[390972876,1760248240153,-151.0,0.000249,7]
[390972878,1760248240161,-151.0,0.000249,7]
[390972880,1760248240171,-306.753128,0.000249,7]
[390972882,1760248240184,-151.0,0.000249,7]
[390972884,1760248240193,-306.753128,0.000249,7]
[390972886,1760248240203,-339970.18295954,0.000249,2]
[390972888,1760248240217,-2270.6630178,0.000249,2]
[390972894,1760248242858,-380.0,0.00024658,2]
[390972895,1760248242868,-1210.36743561,0.000249,2]
[390972896,1760248242879,-282.4,0.000249,2]
[390972897,1760248242914,-360.48670597,0.000249,2]
[390972901,1760248379721,1000.0,0.00030217,60]
[390972903,1760248491679,709.204921,0.00013699,2]
[390972904,1760248491846,709.204921,0.00020187,2]
[390972907,1760248920130,2929.24,0.00021788,2]
[390972972,1760249437919,-151.0,0.000235,9]
[390972973,1760249437929,-185.82484014,0.000235,2]
[390972974,1760249437938,-444.21515986,0.00023728,2]
[390972975,1760249438033,-60.56908521,0.00023728,2]
[390972976,1760249438043,-2537.29,0.0002389,10]
[390972977,1760249438053,-496.34,0.0002389,3]
[390972978,1760249438063,-2114.41,0.0002389,10]
[390972979,1760249438073,-1937.7,0.0002389,10]
[390972980,1760249438083,-526.82182036,0.00023899,2]
[390972981,1760249438093,-299.33874389,0.00023899,2]
[390972982,1760249438102,-500.0,0.00023899,2]
[390972983,1760249438112,-500.0,0.00023899,2]
[390972984,1760249438121,-154.78474021,0.00023899,2]
[390972985,1760249438130,-500.0,0.00023899,2]
[390972986,1760249438140,-500.0,0.00023899,2]
[390972987,1760249438149,-500.0,0.00023899,2]
[390972988,1760249438159,-500.0,0.00023899,2]
[390972989,1760249438168,-500.0,0.00023899,2]
[390972990,1760249438177,-262.0,0.00023899,2]
[390972991,1760249438187,-500.0,0.00023899,2]
[390972992,1760249438196,-500.0,0.00023899,2]
[390972993,1760249438205,-187.5127302,0.00023899,2]
[390972994,1760249438214,-500.0,0.00023899,2]
[390972995,1760249438224,-500.0,0.00023899,2]
[390972996,1760249438233,-500.0,0.00023899,2]
[390972997,1760249438242,-500.0,0.00023899,2]
[390972998,1760249438251,-500.0,0.00023899,2]
[390972999,1760249438260,-320.04199609,0.00023899,2]
[390973000,1760249438269,-500.0,0.00023899,2]
[390973001,1760249438278,-1244979.95088317,0.000239,2]
[390973002,1760249438288,-3044.75,0.0002399,10]
[390973003,1760249438298,-300.0,0.00023998,2]
[390973004,1760249438307,-194330.46486941,0.00024,2]
[390973005,1760249438316,-24999.98,0.00024,2]
[390973006,1760249438325,-24999.99,0.00024,2]
[390973007,1760249438334,-25000.0,0.00024,2]
[390973008,1760249438343,-1359.0257648,0.00024079,2]
[390973009,1760249438352,-213.69856616,0.000241,2]
[390973010,1760249438362,-588.4106815,0.000241,2]
[390973011,1760249438371,-1000.0,0.00024151,5]
[390973012,1760249438380,-392.005774,0.000242,2]
[390973013,1760249438389,-1336.55515468,0.0002424,2]
[390973014,1760249438399,-1359.0257648,0.00024353,2]
[390973015,1760249438408,-1359.0257648,0.00024533,2]
[390973016,1760249438417,-4025.0,0.00024565,2]
[390973017,1760249438426,-2485.35439163,0.000246,2]
[390973018,1760249438436,-2257.0,0.00024628,2]
[390973019,1760249438446,-2263.0,0.0002465,2]
[390973020,1760249438455,-1500.0,0.00024657,10]
[390973021,1760249438464,-1567.9519887,0.00024657,10]
[390973022,1760249438474,-2257.0,0.00024669,2]
[390973023,1760249438483,-218.46037364,0.00024669,2]
[390973024,1760249438493,-298.14195131,0.0002468,10]
[390973025,1760249438502,-166.58183923,0.00024687,8]
[390973026,1760249438512,-500.0,0.00024687,8]
[390973027,1760249438523,-506.29137541,0.00024687,8]
[390973028,1760249438532,-1000.0,0.00024688,3]
[390973029,1760249438541,-1000.0,0.00024688,10]
[390973030,1760249438552,-258.71931985,0.00024688,8]
[390973031,1760249438561,-500.0,0.00024688,8]
[390973032,1760249438571,-500.0,0.00024689,8]
[390973033,1760249438580,-289.31313432,0.00024689,8]
[390973034,1760249438591,-500.0,0.00024689,8]
[390973035,1760249438601,-622.1386652,0.00024689,8]
[390973036,1760249438611,-151.0,0.0002469,7]
[390973037,1760249438620,-532.900034,0.0002469,7]
[390973038,1760249438630,-151.0,0.0002469,7]
[390973039,1760249438640,-532.900034,0.0002469,7]
[390973040,1760249438649,-151.0,0.0002469,7]
[390973041,1760249438658,-370000.0,0.0002469,2]
[390973042,1760249438667,-241.57229218,0.000247,2]
[390973043,1760249438677,-4025.0,0.00024769,2]
[390973044,1760249438687,-500.0,0.00024772,8]
[390973045,1760249438696,-500.0,0.00024772,8]
[390973046,1760249438706,-585.84487999,0.00024772,8]
[390973047,1760249438715,-416.594,0.00024778,8]
[390973048,1760249438724,-1567.9519887,0.000248,3]
[390973049,1760249438734,-392.005774,0.000248,2]
[390973050,1760249438746,-392.005774,0.000248,2]
[390973051,1760249438756,-392.005774,0.000248,2]
[390973052,1760249438765,-392.005774,0.000248,2]
[390973053,1760249438775,-28657.87693564,0.000248,3]
[390973054,1760249438785,-298.14195131,0.000248,3]
[390973055,1760249438795,-417.15472785,0.00024854,2]
[390973056,1760249438805,-160.0,0.00024854,2]
[390973057,1760249438815,-160.0,0.00024854,2]
[390973058,1760249438824,-1567.9519887,0.00024871,2]
[390973059,1760249438833,-500.0,0.00024873,2]
[390973060,1760249438843,-502.51841808,0.00024873,2]
[390973061,1760249438853,-255.85980242,0.00024873,2]
[390973062,1760249438862,-500.0,0.00024873,2]
[390973063,1760249438872,-163.885816,0.00024885,7]
[390973064,1760249438882,-151.0,0.00024885,7]
[390973065,1760249438894,-151.78338,0.00024885,7]
[390973066,1760249438903,-151.0,0.00024885,7]
[390973067,1760249438913,-879.262409,0.00024885,7]
[390973068,1760249438922,-879.262409,0.00024885,7]
[390973069,1760249438931,-151.0,0.00024885,7]
[390973070,1760249438940,-879.262409,0.00024885,7]
[390973071,1760249438950,-165.069161,0.00024885,7]
[390973072,1760249438959,-879.262409,0.00024885,7]
[390973073,1760249438968,-165.069161,0.00024885,7]
[390973074,1760249438978,-165.069161,0.00024885,7]
[390973075,1760249438987,-165.069161,0.00024885,7]
[390973076,1760249438996,-151.0,0.00024885,7]
[390973077,1760249439005,-151.0,0.00024885,7]
[390973078,1760249439015,-275.440586,0.00024885,7]
[390973079,1760249439024,-275.440586,0.00024885,7]
[390973080,1760249439033,-275.440586,0.00024885,7]
[390973081,1760249439043,-275.440586,0.00024885,7]
[390973082,1760249439054,-196.172456,0.00024885,7]
[390973083,1760249439064,-196.172456,0.00024885,7]
[390973084,1760249439074,-151.780669,0.00024885,7]
[390973085,1760249439084,-196.172456,0.00024885,7]
[390973086,1760249439095,-196.172456,0.00024885,7]
[390973087,1760249439105,-151.0,0.00024885,7]
[390973088,1760249439115,-306.753128,0.00024885,7]
[390973089,1760249439124,-152.052314,0.00024885,7]
[390973090,1760249439133,-153.615118,0.00024885,7]
[390973091,1760249439143,-153.349608,0.00024885,7]
[390973092,1760249439152,-306.753128,0.00024885,7]
[390973093,1760249439162,-151.0,0.00024885,7]
[390973094,1760249439171,-306.753128,0.00024885,7]
[390973095,1760249439181,-151.0,0.00024885,7]
[390973096,1760249439191,-151.0,0.00024885,7]
[390973097,1760249439201,-306.753128,0.00024885,7]
[390973098,1760249439210,-151.0,0.00024885,7]
[390973099,1760249439219,-151.0,0.00024885,7]
[390973100,1760249439228,-151.0,0.00024885,7]
[390973101,1760249439237,-151.0,0.00024885,7]
[390973102,1760249439246,-151.0,0.00024885,7]
[390973103,1760249439256,-151.0,0.00024885,7]
[390973104,1760249439265,-151.0,0.00024885,7]
[390973105,1760249439274,-151.0,0.00024885,7]
[390973106,1760249439283,-152.183287,0.00024885,7]
[390973107,1760249439293,-151.0,0.00024885,7]
[390973108,1760249439304,-151.0,0.00024885,7]
[390973109,1760249439318,-169.443564,0.00024885,7]
[390973110,1760249439328,-169.443564,0.00024885,7]
[390973111,1760249439339,-169.443564,0.00024885,7]
[390973112,1760249439349,-151.0,0.00024885,7]
[390973113,1760249439359,-169.443564,0.00024885,7]
[390973114,1760249439370,-151.0,0.00024885,7]
[390973115,1760249439379,-478.610353,0.00024885,7]
[390973116,1760249439390,-151.0,0.00024885,7]
[390973117,1760249439400,-151.0,0.00024885,7]
[390973119,1760249439411,-478.610353,0.00024885,7]
[390973121,1760249439420,-478.610353,0.00024885,7]
[390973123,1760249439429,-478.610353,0.00024885,7]
[390973124,1760249439439,-151.0,0.00024885,7]
[390973125,1760249439451,-151.0,0.00024885,7]
[390973126,1760249439461,-151.0,0.00024885,7]
[390973127,1760249439470,-1000.0,0.00024885,2]
[390973128,1760249439480,-1000.0,0.00024885,2]
[390973129,1760249439489,-1009.97028714,0.00024885,2]
[390973130,1760249439499,-151.0,0.00024885,2]
[390973131,1760249439510,-1000.0,0.00024885,2]
[390973132,1760249439522,-151.0,0.00024885,2]
[390973133,1760249439531,-18603.8837,0.00024885,2]
[390973134,1760249439540,-500.0,0.00024885,2]
[390973135,1760249439551,-151.0,0.00024885,2]
[390973136,1760249439560,-500.0,0.00024885,2]
[390973137,1760249439569,-1000.0,0.00024885,2]
[390973138,1760249439579,-151.0,0.00024885,2]
[390973139,1760249439590,-500.0,0.00024885,2]
[390973141,1760249439600,-151.0,0.00024885,2]
[390973142,1760249439610,-500.0,0.00024885,2]
[390973143,1760249439619,-483.74602766,0.00024885,2]
[390973144,1760249439628,-1000.0,0.00024885,2]
[390973145,1760249439639,-151.0,0.00024885,2]
[390973146,1760249439648,-500.0,0.00024885,2]
[390973147,1760249439658,-151.0,0.00024885,2]
[390973148,1760249439667,-1000.0,0.00024885,2]
[390973149,1760249439677,-151.0,0.00024885,2]
[390973150,1760249439686,-500.0,0.00024885,2]
[390973151,1760249439696,-155.3830729,0.00024885,2]
[390973152,1760249439705,-1000.0,0.00024885,2]
[390973153,1760249439714,-153.26398906,0.00024885,2]
[390973154,1760249439724,-190.77124641,0.00024885,2]
[390973155,1760249439733,-500.0,0.00024885,2]
[390973156,1760249439742,-1000.0,0.00024885,2]
[390973157,1760249439751,-500.0,0.00024885,2]
[390973158,1760249439760,-1000.0,0.00024885,2]
[390973159,1760249439769,-521.56339739,0.00024885,2]
[390973160,1760249439779,-1000.0,0.00024885,2]
[390973161,1760249439788,-151.0,0.00024885,2]
[390973162,1760249439800,-1000.0,0.00024885,2]
[390973163,1760249439809,-211.61315389,0.00024885,2]
[390973164,1760249439818,-163.1743703,0.00024885,2]
[390973165,1760249439828,-1000.0,0.00024885,2]
[390973166,1760249439837,-151.34351314,0.00024885,2]
[390973167,1760249439846,-1000.0,0.00024885,2]
[390973168,1760249439855,-557.39742113,0.00024885,2]
[390973169,1760249439864,-500.0,0.00024885,2]
[390973170,1760249439874,-250.0,0.00024885,2]
[390973171,1760249439883,-500.0,0.00024885,2]
[390973172,1760249439892,-250.0,0.00024885,2]
[390973173,1760249439901,-500.0,0.00024885,2]
[390973174,1760249439911,-250.0,0.00024885,2]
[390973175,1760249439920,-162.85878165,0.00024885,2]
[390973176,1760249439929,-500.0,0.00024885,2]
[390973177,1760249439938,-252.06122447,0.00024885,2]
[390973178,1760249439947,-614.96583284,0.00024885,2]
[390973179,1760249439956,-6306.65654691,0.000249,2]
[390973180,1760249439965,-177.70817806,0.000249,2]
[390973181,1760249439974,-242.9270925,0.000249,2]
[390973182,1760249439983,-379.09563968,0.000249,2]
[390973184,1760249439992,-1122.29453431,0.000249,2]
[390973186,1760249440002,-1809.30116493,0.000249,2]
[390973188,1760249440017,-804.54757427,0.000249,2]
[390973190,1760249440028,-1349.42759378,0.000249,2]
[390973192,1760249440038,-3000.0,0.000249,2]
[390973194,1760249440048,-151.0,0.000249,7]
[390973196,1760249440058,-153.259253,0.000249,7]
[390973198,1760249440067,-151.0,0.000249,7]
[390973200,1760249440077,-160.17643406,0.000249,2]
[390973202,1760249440087,-151.0,0.000249,7]
[390973204,1760249440096,-28875.6972991,0.000249,2]
[390973206,1760249440106,-151.0,0.000249,7]
[390973208,1760249440116,-153.083413,0.000249,7]
[390973210,1760249440125,-151.0,0.000249,7]
[390973212,1760249440134,-151.0,0.000249,7]
[390973214,1760249440143,-151.0,0.000249,7]
[390973216,1760249440152,-151.0,0.000249,7]
[390973218,1760249440161,-151.0,0.000249,7]
[390973233,1760249440169,-151.0,0.000249,7]
[390973236,1760249440308,-151.0,0.000249,7]
[390973238,1760249440317,-153.186894,0.000249,7]
[390973240,1760249440326,-151.0,0.000249,7]
[390973242,1760249440334,-151.0,0.000249,7]
[390973244,1760249440344,-182.1953194,0.000249,2]
[390973246,1760249440352,-1328.86985397,0.000249,2]
[390973248,1760249440361,-151.0,0.000249,7]
[390973250,1760249440370,-151.0,0.000249,7]
[390973252,1760249440379,-3236.7243654,0.000249,2]
[390973254,1760249440388,-202.6244,0.000249,7]
[390973256,1760249440397,-202.6244,0.000249,7]
[390973258,1760249440406,-202.6244,0.000249,7]
[390973260,1760249440415,-202.6244,0.000249,7]
[390973261,1760249440424,-151.0,0.000249,7]
[390973263,1760249440435,-151.0,0.000249,7]
[390973266,1760249440445,-151.0,0.000249,7]
[390973267,1760249440454,-153.865829,0.000249,7]
[390973269,1760249440464,-484.398643,0.000249,7]
[390973271,1760249440473,-484.398643,0.000249,7]
[390973274,1760249440482,-484.398643,0.000249,7]
[390973275,1760249440491,-484.398643,0.000249,7]
[390973277,1760249440500,-151.0,0.000249,7]
[390973279,1760249440509,-151.0,0.000249,7]
[390973281,1760249440523,-151.0,0.000249,7]
[390973283,1760249440531,-151.0,0.000249,7]
[390973285,1760249440540,-401.833679,0.000249,7]
[390973287,1760249440549,-401.833679,0.000249,7]
[390973289,1760249440561,-151.0,0.000249,7]
[390973291,1760249440570,-401.833679,0.000249,7]
[390973293,1760249440579,-151.0,0.000249,7]
[390973295,1760249440589,-401.833679,0.000249,7]
[390973298,1760249440599,-151.0,0.000249,7]
[390973299,1760249440608,-207.473384,0.000249,7]
[390973301,1760249440616,-207.473384,0.000249,7]
[390973303,1760249440625,-207.473384,0.000249,7]
[390973305,1760249440634,-207.473384,0.000249,7]
[390973307,1760249440643,-151.0,0.000249,7]
[390973309,1760249440652,-151.0,0.000249,7]
[390973311,1760249440660,-153.005721,0.000249,7]
[390973313,1760249440670,-151.0,0.000249,7]
[390973315,1760249440679,-151.0,0.000249,2]
[390973317,1760249440689,-151.0,0.000249,2]
[390973320,1760249440698,-151.0,0.000249,7]
[390973322,1760249440707,-151.0,0.000249,7]
[390973324,1760249440716,-151.0,0.000249,7]
[390973325,1760249440725,-151.0,0.000249,7]
[390973328,1760249440735,-151.0,0.000249,7]
[390973330,1760249440744,-151.0,0.000249,7]
[390973331,1760249440753,-220.875325,0.000249,7]
[390973334,1760249440763,-151.0,0.000249,7]
[390973335,1760249440774,-153.330675,0.000249,7]
[390973338,1760249440783,-151.0,0.000249,7]
[390973340,1760249440793,-151.0,0.000249,7]
[390973342,1760249440802,-151.465189,0.000249,7]
[390973344,1760249440811,-151.0,0.000249,7]
[390973346,1760249440820,-151.0,0.000249,7]
[390973348,1760249440829,-152.117073,0.000249,7]
[390973350,1760249440838,-2186.3438323,0.000249,2]
[390973352,1760249440847,-778.753641,0.000249,7]
[390973354,1760249440857,-778.753641,0.000249,7]
[390973356,1760249440866,-778.753641,0.000249,7]
[390973358,1760249440875,-778.753641,0.000249,7]
[390973360,1760249440884,-778.753641,0.000249,7]
[390973362,1760249440893,-778.753641,0.000249,7]
[390973364,1760249440902,-778.753641,0.000249,7]
[390973366,1760249440912,-778.753641,0.000249,7]
[390973367,1760249440922,-151.0,0.000249,7]
[390973369,1760249440931,-153.865255,0.000249,7]
[390973371,1760249440941,-190.91153,0.000249,7]
[390973373,1760249440950,-190.91153,0.000249,7]
[390973375,1760249440958,-190.91153,0.000249,7]
[390973377,1760249440968,-190.91153,0.000249,7]
[390973379,1760249440977,-190.91153,0.000249,7]
[390973381,1760249440986,-190.91153,0.000249,7]
[390973383,1760249440995,-190.91153,0.000249,7]
[390973385,1760249441004,-190.91153,0.000249,7]
[390973387,1760249441014,-151.0,0.000249,7]
[390973389,1760249441023,-151.0,0.000249,7]
[390973391,1760249441033,-151.0,0.000249,7]
[390973393,1760249441042,-263.415969,0.000249,7]
[390973395,1760249441052,-151.0,0.000249,7]
[390973398,1760249441061,-263.415969,0.000249,7]
[390973400,1760249441071,-203.611045,0.000249,7]
[390973401,1760249441081,-263.415969,0.000249,7]
[390973404,1760249441090,-263.415969,0.000249,7]
[390973406,1760249441100,-263.415969,0.000249,7]
[390973408,1760249441109,-263.415969,0.000249,7]
[390973410,1760249441119,-263.415969,0.000249,7]
[390973412,1760249441129,-263.415969,0.000249,7]
[390973414,1760249441139,-168.042562,0.000249,7]
[390973415,1760249441149,-168.042562,0.000249,7]
[390973417,1760249441158,-151.0,0.000249,7]
[390973419,1760249441167,-168.042562,0.000249,7]
[390973421,1760249441176,-151.0,0.000249,7]
[390973423,1760249441185,-168.042562,0.000249,7]
[390973425,1760249441194,-251.72888,0.000249,7]
[390973427,1760249441203,-168.042562,0.000249,7]
[390973429,1760249441212,-168.042562,0.000249,7]
[390973432,1760249441225,-168.042562,0.000249,7]
[390973433,1760249441234,-168.042562,0.000249,7]
[390973435,1760249441243,-151.0,0.000249,7]
[390973437,1760249441252,-151.0,0.000249,7]
[390973439,1760249441261,-151.0,0.000249,7]
[390973441,1760249441270,-151.0,0.000249,7]
[390973443,1760249441280,-151.0,0.000249,7]
[390973445,1760249441289,-151.0,0.000249,7]
[390973447,1760249441298,-151.0,0.000249,7]
[390973449,1760249441308,-151.0,0.000249,7]
[390973451,1760249441317,-153.89151,0.000249,7]
[390973452,1760249441326,-151.0,0.000249,7]
[390973453,1760249441335,-151.0,0.000249,7]
[390973454,1760249441344,-151.0,0.000249,7]
[390973455,1760249441353,-246.75131,0.000249,7]
[390973456,1760249441362,-161.87373342,0.000249,7]
[390973457,1760249441371,-151.442495,0.000249,7]
[390973458,1760249441380,-151.0,0.000249,7]
[390973459,1760249441389,-151.0,0.000249,7]
[390973460,1760249441398,-151.62209293,0.000249,7]
[390973461,1760249441407,-151.0,0.000249,7]
[390973462,1760249441415,-151.0,0.000249,7]
[390973463,1760249441424,-296.497158,0.000249,7]
[390973464,1760249441432,-151.0,0.000249,7]
[390973465,1760249441441,-296.497158,0.000249,7]
[390973466,1760249441450,-296.497158,0.000249,7]
[390973467,1760249441459,-296.497158,0.000249,7]
[390973468,1760249441467,-151.0,0.000249,7]
[390973469,1760249441476,-151.0,0.000249,7]
[390973470,1760249441485,-151.0,0.000249,7]
[390973471,1760249441494,-286.609541,0.000249,7]
[390973472,1760249441503,-151.0,0.000249,7]
[390973473,1760249441513,-151.0,0.000249,7]
[390973474,1760249441523,-298.14195131,0.000249,7]
[390973475,1760249441532,-151.0,0.000249,7]
[390973476,1760249441541,-151.0,0.000249,7]
[390973477,1760249441550,-151.0,0.000249,7]
[390973478,1760249441559,-151.0,0.000249,7]
[390973479,1760249441568,-879.262409,0.000249,7]
[390973480,1760249441577,-879.262409,0.000249,7]
[390973481,1760249441586,-262.646847,0.000249,7]
[390973482,1760249441597,-879.262409,0.000249,7]
[390973483,1760249441606,-165.069161,0.000249,7]
[390973484,1760249441615,-879.262409,0.000249,7]
[390973485,1760249441624,-165.069161,0.000249,7]
[390973486,1760249441633,-165.069161,0.000249,7]
[390973487,1760249441641,-165.069161,0.000249,7]
[390973488,1760249441655,-151.0,0.000249,7]
[390973489,1760249441666,-151.0,0.000249,7]
[390973490,1760249441678,-275.440586,0.000249,7]
[390973491,1760249441690,-275.440586,0.000249,7]
[390973492,1760249441701,-275.440586,0.000249,7]
[390973493,1760249441712,-275.440586,0.000249,7]
[390973494,1760249441722,-10580.3661105,0.000249,2]
[390973495,1760249441741,-874.54482971,0.000249,2]
[390973511,1760249442887,-488.14538573,0.00024,2]
[390973514,1760249486192,-203.51087,0.00027,120]